fUST/lending_fUST_20260328
["ID","MTS","AMOUNT","RATE_DAILY","PERIOD"]
[418964521,1774674638903,-1414.20784147,0.000155,2]
[418964522,1774674638912,-2934.69762162,0.00015815,12]
[418964523,1774674638921,-580.11794458,0.00017166,18]
[418964539,1774674641267,-444.0,0.000154,2]
[418964540,1774674641276,-401.15949572,0.000154,2]
[418964550,1774674644188,-652.25,0.00017166,18]
[418964551,1774674644200,-453.0,0.00017166,18]
[418964569,1774674647127,-1291.170842,0.00016994,2]
[418964736,1774675832635,-5000.0,0.00013426,2]
[418964737,1774675832645,-611.0,0.00013426,2]
[418964738,1774675832654,-1000.0,0.00013699,2]
[418964739,1774675832664,-170.14325319,0.000149,2]
[418964740,1774675832674,-170.14325319,0.00015,2]
[418964741,1774675832685,-170.14325319,0.000152,2]
[418964742,1774675832695,-170.14325319,0.000153,2]
[418964743,1774675832705,-170.14325319,0.000155,2]
[418964744,1774675832714,-300.0,0.00017165,2]
[418964745,1774675832723,-191.0,0.00017165,2]
[418964747,1774675832732,-1683.86939577,0.00017166,18]
[418964749,1774675832743,-41.46370025,0.00017166,18]
[418964751,1774675832752,-389.38830575,0.00017166,2]
[418964753,1774675832763,-37.61169425,0.00017166,2]
[418964754,1774675832772,-493.0,0.00017166,2]
[418964755,1774675832781,-3919.86952716,0.00018518,24]
[418964756,1774675832792,-500.0,0.0001905,2]
[418964757,1774675832802,-300.0,0.00019366,2]
[418964758,1774675832811,-118.66677259,0.00020495,2]
[418964809,1774675846881,-839.0946808,0.00013292,2]
[418964812,1774675847225,-1200.0,0.00013292,2]
[418964940,1774677031866,-384.768375,0.0001264,2]
[418964964,1774677038028,-336.21422054,0.0001264,2]
[418964972,1774677040753,-4279.01740446,0.0001264,2]
[418964973,1774677040765,-599.0,0.0001264,2]
[418964974,1774677040775,-1000.0,0.00013699,2]
[418964975,1774677040786,-300.0,0.00014959,2]
[418964976,1774677040797,-1200.0,0.00014959,2]
[418964977,1774677040809,-1089.0,0.0001496,2]
[418964978,1774677040820,-180.0852103,0.00014963,2]
[418964979,1774677040831,-806.9227402,0.00014963,2]
[418964980,1774677040843,-548.7598114,0.00014963,2]
[418964981,1774677040854,-672.9618503,0.00014963,2]
[418964982,1774677040866,-3711.7733112,0.00014963,2]
[418964983,1774677040878,-427.0,0.00015,2]
[418964984,1774677040888,-493.0,0.00015,2]
[418964985,1774677040898,-218.79867496,0.00016694,2]
[418964989,1774677043454,-24.18666245,0.00016694,2]
[418964990,1774677043465,-783.0,0.00016694,2]
[418964991,1774677043475,-452.0,0.00016694,2]
[418964992,1774677043485,-1196.19702889,0.0001693,2]
[418964999,1774677046056,-2255.405377,0.0001693,2]
[418965001,1774677046075,-260.17090531,0.0001693,2]
[418965002,1774677046089,-688.0,0.0001693,2]
[418965003,1774677046101,-435.0,0.0001693,2]
[418965004,1774677046111,-672.9618503,0.0001694,2]
[418965005,1774677046121,-806.9227402,0.00016955,2]
[418965006,1774677046131,-548.7598114,0.00017352,2]
[418965007,1774677046141,-412.31925206,0.00017635,2]
[418965008,1774677046153,-2.9264317,0.0001878,2]
[418965009,1774677046166,-381.60600385,0.0001878,2]
[418965010,1774677046351,-5000.0,0.00016527,2]
[418965011,1774677046363,-682.12514945,0.0001878,2]
[418965012,1774677046374,-1425.09572945,0.00018896,2]
[418965013,1774677046388,-2286.67758175,0.00018896,2]
[418965014,1774677046399,-672.9618503,0.00018917,2]
[418965015,1774677046410,-806.9227402,0.00018946,2]
[418965016,1774677046420,-300.21216926,0.00019,30]
[418965017,1774677046431,-500.0,0.00019425,2]
[418965018,1774677046443,-500.0,0.00019425,2]
[418965019,1774677046453,-500.0,0.00019425,2]
[418965020,1774677046464,-849.8770161,0.000195,7]
[418965021,1774677046474,-193.38118126,0.000195,2]
[418965022,1774677046484,-1066.657585,0.00019571,2]
[418965023,1774677046495,-548.7598114,0.00019741,2]
[418965024,1774677046504,-500.0,0.00019972,2]
[418965025,1774677046514,-500.0,0.00019972,2]
[418965026,1774677046525,-500.0,0.00019972,2]
[418965027,1774677046535,-500.0,0.00019972,2]
[418965028,1774677046545,-500.0,0.00019972,2]
[418965029,1774677046557,-500.0,0.00019972,2]
[418965030,1774677046568,-224.55006473,0.00019972,2]
[418965031,1774677046581,-242.94993527,0.00019972,2]
[418965032,1774677046591,-500.0,0.00019972,2]
[418965033,1774677046601,-500.0,0.00019972,2]
[418965034,1774677046611,-500.0,0.00019972,2]
[418965035,1774677046622,-500.0,0.00019972,2]
[418965036,1774677046633,-500.0,0.00019972,2]
[418965037,1774677046643,-500.0,0.00019972,2]
[418965038,1774677046654,-500.0,0.00019972,2]
[418965039,1774677046664,-353.42724128,0.00019972,2]
[418965040,1774677046676,-146.57275872,0.00019972,2]
[418965041,1774677046687,-500.0,0.00019972,2]
[418965042,1774677046697,-248.29919606,0.00019972,2]
[418965043,1774677046715,-639.0,0.0001693,2]
[418965044,1774677046725,-251.70080394,0.00019972,2]
[418965045,1774677046735,-500.0,0.00019972,2]
[418965046,1774677046745,-232.21994368,0.00019972,2]
[418965047,1774677046756,-500.0,0.00019972,2]
[418965048,1774677046766,-500.0,0.00019972,2]
[418965049,1774677046776,-500.0,0.00019972,2]
[418965050,1774677046786,-425.5,0.00019972,2]
[418965051,1774677046797,-500.0,0.00019972,2]
[418965052,1774677046807,-500.0,0.00019972,2]
[418965053,1774677046817,-500.0,0.00019972,2]
[418965054,1774677046828,-500.0,0.00019972,2]
[418965055,1774677046838,-500.0,0.00019972,2]
[418965056,1774677046984,-500.0,0.00019972,2]
[418965057,1774677046998,-500.0,0.00019972,2]
[418965058,1774677047009,-500.0,0.00019972,2]
[418965059,1774677047019,-500.0,0.00019972,2]
[418965060,1774677047030,-500.0,0.00019972,2]
[418965061,1774677047039,-500.0,0.00019972,2]
[418965062,1774677047049,-500.0,0.00019972,2]
[418965063,1774677047059,-500.0,0.00019972,2]
[418965064,1774677047069,-500.0,0.00019972,2]
[418965065,1774677047079,-500.0,0.00019972,2]
[418965066,1774677047088,-1028.10520712,0.00019973,2]
[418965067,1774677047098,-500.0,0.00019973,2]
[418965068,1774677047108,-500.0,0.00019973,2]
[418965069,1774677047118,-173.20765913,0.0002,120]
[418965070,1774677047128,-1066.657585,0.00020361,2]
[418965071,1774677047138,-642.0,0.00020388,2]
[418965072,1774677047147,-2197.0,0.00020388,2]
[418965073,1774677047156,-1402.0,0.00020388,2]
[418965074,1774677047165,-209.218,0.00020388,2]
[418965075,1774677047174,-250.0,0.00020615,2]
[418965076,1774677047184,-3711.7733112,0.00020863,2]
[418965077,1774677047193,-672.9618503,0.00020894,2]
[418965078,1774677047202,-806.9227402,0.00020938,2]
[418965079,1774677047212,-1066.657585,0.00021152,2]
[418965080,1774677047221,-1066.657585,0.00021942,2]
[418965081,1774677047231,-548.7598114,0.0002213,2]
[418965082,1774677047240,-500.0,0.00022573,2]
[418965083,1774677047250,-4905.0414327,0.00022574,61]
[418965084,1774677047259,-500.0,0.00022658,2]
[418965085,1774677047268,-1066.657585,0.00022733,2]
[418965086,1774677047277,-270.83333333,0.00023,2]
[418965087,1774677047286,-1000.0,0.00023206,2]
[418965088,1774677047295,-228.0,0.000233,2]
[418965089,1774677047304,-1257.0965,0.0002333,2]
[418965090,1774677047314,-239.47558831,0.00023387,2]
[418965091,1774677047323,-211.58410958,0.00023387,2]
[418965092,1774677047333,-642.0,0.00023388,2]
[418965093,1774677047342,-2197.0,0.00023388,2]
[418965094,1774677047351,-1402.0,0.00023388,2]
[418965095,1774677047361,-571.28720875,0.00023704,2]
[418965096,1774677047370,-500.0,0.00023754,2]
[418965097,1774677047379,-171.398,0.0002382,5]
[418965098,1774677047389,-487.0,0.00023825,2]
[418965099,1774677047398,-487.0,0.00023825,2]
[418965100,1774677047407,-487.0,0.00023825,2]
[418965101,1774677047416,-487.0,0.00023825,2]
[418965102,1774677047425,-487.0,0.00023825,2]
[418965103,1774677047435,-487.0,0.00023825,2]
[418965104,1774677047444,-697.76,0.00023825,2]
[418965105,1774677047454,-5365.14969999,0.00023926,77]
[418965106,1774677047463,-162.380719,0.00024144,2]
[418965107,1774677047472,-151.0,0.00024144,2]
[418965108,1774677047482,-151.0,0.00024144,2]
[418965109,1774677047491,-151.0,0.00024144,2]
[418965110,1774677047501,-156.82605751,0.00024144,2]
[418965111,1774677047520,-537.6845,0.00024144,2]
[418965112,1774677047532,-537.6845,0.00024144,2]
[418965113,1774677047542,-2150.738,0.00024144,2]
[418965114,1774677047552,-557.5788265,0.00024199,2]
[418965115,1774677047562,-578.20924308,0.00024254,2]
[418965116,1774677047572,-599.60298507,0.00024309,2]
[418965117,1774677047582,-621.78829552,0.00024364,2]
[418965118,1774677047592,-767.09,0.00024409,10]
[418965119,1774677047602,-644.79446246,0.00024419,2]
[418965120,1774677047612,-218.3642496,0.00024429,2]
[418965121,1774677047621,-151.2609274,0.00024429,2]
[418965122,1774677047631,-151.0,0.00024429,2]
[418965123,1774677047640,-151.0,0.00024442,2]
[418965124,1774677047650,-151.0,0.00024442,2]
[418965125,1774677047660,-454.7223222,0.00024442,2]
[418965126,1774677047671,-151.0,0.00024442,2]
[418965127,1774677047682,-166.5757342,0.00024442,2]
[418965128,1774677047691,-151.0,0.00024442,2]
[418965129,1774677047701,-151.0,0.00024442,2]
[418965130,1774677047711,-151.0,0.00024442,2]
[418965131,1774677047720,-151.0,0.00024442,2]
[418965132,1774677047730,-151.1577947,0.00024442,2]
[418965133,1774677047740,-151.551306,0.00024442,2]
[418965134,1774677047751,-151.0,0.00024442,2]
[418965135,1774677047761,-668.65185757,0.00024474,2]
[418965136,1774677047770,-649.45018433,0.00024529,2]
[418965137,1774677047779,-500.0,0.00024657,9]
[418965138,1774677047788,-388.25214063,0.00024681,2]
[418965139,1774677047798,-557.5788265,0.00024692,2]
[418965140,1774677047807,-2230.315306,0.00024692,2]
[418965141,1774677047816,-6288.99,0.000248,7]
[418965142,1774677047826,-108506.918875,0.000249,2]
[418965143,1774677047835,-500.0,0.00024931,9]
[418965144,1774677047844,-367.4088442,0.00025,120]
[418965145,1774677047853,-182.86566595,0.00025178,2]
[418965146,1774677047862,-327.39504547,0.00025178,2]
[418965147,1774677047872,-500.0,0.00025205,9]
[418965148,1774677047882,-2312.83697232,0.0002524,2]
[418965149,1774677047891,-151.0,0.00025251,2]
[418965150,1774677047900,-151.0,0.00025251,2]
[418965151,1774677047910,-3445.52598144,0.00025352,2]
[418965152,1774677047919,-151.0,0.00025434,2]
[418965153,1774677047929,-151.0,0.00025434,2]
[418965154,1774677047938,-59241.35443841,0.00025434,2]
[418965333,1774678232056,-351.995,7.524e-05,2]
[418965348,1774678238431,-1405.5599481,7.524e-05,2]
[418965401,1774678243820,-3242.4450519,7.524e-05,2]
[418965402,1774678243830,-1200.0,7.6e-05,2]
[418965403,1774678243841,-527.0,7.6e-05,2]
[418965404,1774678243850,-603.45451677,9.1e-05,2]
[418965405,1774678244047,-2396.74227416,9.1e-05,2]
[418965406,1774678244055,-1200.0,0.00013026,2]
[418965407,1774678244062,-1000.0,0.00013699,2]
[418965408,1774678244070,-643.0,0.00015,2]
[418965409,1774678244076,-436.0,0.00015,2]
[418965410,1774678244082,-300.0,0.00019498,2]
[418965411,1774678244089,-150.572,0.00020882,2]
[418965412,1774678244095,-2192.04440216,0.00020882,2]
[418965425,1774678246413,-536.0,0.00020882,10]
[418965426,1774678246423,-418.0,0.00020882,10]
[418965427,1774678246432,-4.95559784,0.00020882,2]
[418965428,1774678246441,-1402.0,0.00020882,2]
[418965429,1774678246451,-642.0,0.00020882,2]
[418965430,1774678246460,-736.0,0.00020882,2]
[418965431,1774678246470,-184.0,0.00020882,2]
[418965432,1774678246480,-439.0,0.00020882,2]
[418965433,1774678246490,-270.83333333,0.00023,2]
[418965434,1774678246500,-1000.0,0.00023251,30]
[418965435,1774678246511,-2189.0,0.00023882,2]
[418965436,1774678246520,-1398.0,0.00023882,2]
[418965437,1774678246530,-197.54,0.00023882,2]
[418965438,1774678246539,-184.0,0.00023882,2]
[418965439,1774678246548,-439.0,0.00023882,2]
[418965440,1774678246558,-5000.0,0.00024,2]
[418965441,1774678246568,-576.00738224,0.0002417,2]
[418965442,1774678246579,-1412.63164544,0.0002417,2]
[418965443,1774678246588,-208.36940803,0.00025133,2]
[418965444,1774678246598,-3317.969745,0.00025133,2]
[418965543,1774679432318,-349.99,0.00013292,2]
[418965813,1774679446961,-1374.72311645,0.00013292,2]
[418966010,1774680638763,-509.78971537,6.807e-05,2]
[418966012,1774680638774,-5000.0,6.907e-05,2]
[418966014,1774680638785,-518.0,6.907e-05,2]
[418966016,1774680638795,-182.5386872,7.191e-05,2]
[418966017,1774680638806,-1000.0,0.00013699,2]
[418966018,1774680638818,-1200.0,0.00014998,2]
[418966019,1774680638828,-300.0,0.00014999,2]
[418966020,1774680638840,-653.0,0.00015,2]
[418966021,1774680638850,-448.0,0.00015,2]
[418966022,1774680638862,-1000.0,0.00015681,2]
[418966023,1774680638872,-519.78923768,0.00016197,2]
[418966024,1774680638883,-13242.07156836,0.00016297,2]
[418966026,1774680638896,-12508.46729276,0.00016297,2]
[418966027,1774680638906,-305.0,0.00016416,2]
[418966028,1774680638915,-371.0,0.00016498,2]
[418966029,1774680638925,-457.381311,0.00017792,2]
[418966030,1774680638934,-192.9091188,0.00018065,2]
[418966031,1774680638944,-519.78923767,0.00018083,2]
[418966032,1774680638954,-600.0,0.00019,2]
[418966034,1774680638964,-329.15819871,0.00019068,2]
[418966035,1774680638975,-395.76806958,0.000199,2]
[418966037,1774680638987,-589.31108185,0.00019908,2]
[418966039,1774680638997,-1047.66414551,0.00019908,2]
[418966041,1774680639008,-519.78923767,0.00019969,2]
[418966043,1774680639018,-500.64051399,0.00019999,2]
[418966045,1774680639028,-1683.81135067,0.00019999,2]
[418966047,1774680639037,-260.135102,0.00019999,2]
[418966049,1774680639048,-408.20507499,0.00019999,2]
[418966051,1774680639060,-500.0,0.00019999,2]
[418966054,1774680639070,-17.24941885,0.00019999,2]
[418966188,1774680644139,-500.0,0.00016296,2]
[418966189,1774680644150,-500.0,0.00016296,2]
[418966190,1774680644161,-500.0,0.00016296,2]
[418966191,1774680644171,-500.0,0.00016296,2]
[418966192,1774680644181,-500.0,0.00016296,2]
[418966193,1774680644192,-186.62037718,0.00016296,2]
[418966194,1774680644343,-479.85607568,0.00016296,2]
[418966195,1774680644355,-20.14392432,0.00016296,2]
[418966196,1774680644365,-500.0,0.00016296,2]
[418966197,1774680644374,-462.05,0.00016296,2]
[418966198,1774680644384,-293.18797713,0.00016296,2]
[418966199,1774680644422,-206.81202287,0.00016296,2]
[418966200,1774680644431,-500.0,0.00016296,2]
[418966201,1774680644441,-500.0,0.00016296,2]
[418966204,1774680644450,-500.0,0.00016296,2]
[418966206,1774680644459,-182.09125924,0.00016296,2]
[418966223,1774680646827,-317.90874076,0.00016296,2]
[418966224,1774680646836,-500.0,0.00016296,2]
[418966225,1774680646846,-88.77190669,0.00016296,2]
[418966226,1774680647120,-411.22809331,0.00016296,2]
[418966227,1774680647130,-500.0,0.00016296,2]
[418966228,1774680647139,-500.0,0.00016296,2]
[418966229,1774680647149,-500.0,0.00016296,2]
[418966230,1774680647158,-500.0,0.00016296,2]
[418966231,1774680647167,-500.0,0.00016296,2]
[418966232,1774680647177,-500.0,0.00016296,2]
[418966233,1774680647186,-500.0,0.00016296,2]
[418966234,1774680647195,-177.89408134,0.00016296,2]
[418966235,1774680647204,-500.0,0.00016296,2]
[418966236,1774680647214,-500.0,0.00016296,2]
[418966237,1774680647223,-500.0,0.00016296,2]
[418966238,1774680647233,-500.0,0.00016296,2]
[418966239,1774680647242,-500.0,0.00016296,2]
[418966240,1774680647251,-155.87268287,0.00016296,2]
[418966241,1774680647263,-344.12731713,0.00016296,2]
[418966242,1774680647272,-500.0,0.00016296,2]
[418966243,1774680647281,-500.0,0.00016296,2]
[418966244,1774680647290,-500.0,0.00016296,2]
[418966245,1774680647299,-500.0,0.00016296,2]
[418966246,1774680647309,-397.62053571,0.00016296,2]
[418966247,1774680647318,-500.0,0.00016296,2]
[418966248,1774680647328,-500.0,0.00016296,2]
[418966249,1774680647336,-500.0,0.00016296,2]
[418966250,1774680647346,-500.0,0.00016296,2]
[418966251,1774680647357,-500.0,0.00016296,2]
[418966252,1774680647366,-500.0,0.00016296,2]
[418966253,1774680647375,-500.0,0.00016296,2]
[418966254,1774680647385,-500.0,0.00016296,2]
[418966255,1774680647394,-500.0,0.00016296,2]
[418966256,1774680647404,-631.06829187,0.00016296,2]
[418966257,1774680647413,-500.0,0.00016296,2]
[418966258,1774680647423,-500.0,0.00016296,2]
[418966259,1774680647434,-500.0,0.00016296,2]
[418966260,1774680647443,-3815.5326247,0.00019799,2]
[418966261,1774680647456,-1184.4673753,0.00019799,2]
[418966262,1774680647465,-482.75058115,0.00019999,2]
[418966263,1774680647475,-500.0,0.00019999,2]
[418966264,1774680647484,-500.0,0.00019999,2]
[418966265,1774680647494,-500.0,0.00019999,2]
[418966266,1774680647503,-500.0,0.00019999,2]
[418966267,1774680647512,-500.0,0.00019999,2]
[418966268,1774680647521,-495.36644505,0.00019999,2]
[418966269,1774680647531,-500.0,0.00019999,2]
[418966270,1774680647542,-4460.81353055,0.0002,2]
[418966276,1774680980024,1120.86,7.7e-05,120]
[418966277,1774680980052,2500.0,7.7e-05,120]
[418966278,1774681009457,10000.0,7.655e-05,120]
[418966465,1774681846059,-6379.14,7.7e-05,120]
[418966466,1774681846069,-378.54296956,9.51e-05,2]
[418966467,1774681846080,-2234.71593651,9.51e-05,2]
[418966506,1774682670615,-4500.0,9.135e-05,2]
[418966516,1774682784823,-1000.0,9.044e-05,2]
[418966520,1774682862247,-500.0,9.044e-05,2]
[418966526,1774682951087,-2500.0,9.044e-05,2]
[418966549,1774683032081,-2375.91287095,8.954e-05,2]
[418966562,1774683038146,-2624.08712905,8.954e-05,2]
[418966563,1774683038155,-545.0,8.954e-05,2]
[418966564,1774683038164,-500.0,9.8e-05,2]
[418966565,1774683038174,-183.93056721,0.0001,2]
[418966566,1774683038184,-500.0,0.0001,2]
[418966567,1774683038194,-1200.0,0.00013698,2]
[418966568,1774683038203,-1000.0,0.00013699,2]
[418966569,1774683038213,-500.0,0.00014,2]
[418966570,1774683038223,-157.93547235,0.00014604,2]
[418966571,1774683038232,-300.0,0.00014998,2]
[418966572,1774683038241,-300.0,0.00014998,2]
[418966573,1774683038251,-300.0,0.00014998,2]
[418966574,1774683038260,-1000.0,0.00014999,2]
[418966576,1774683038271,-599.0,0.00015,2]
[418966577,1774683038279,-499.0,0.00015,2]
[418966578,1774683038288,-183.93056721,0.00015212,14]
[418966579,1774683038297,-605.91657599,0.00015373,2]
[418966580,1774683038306,-500.0,0.00015687,2]
[418966581,1774683038315,-17574.5674935,0.00015688,2]
[418966582,1774683038324,-1031.3521182,0.00015688,2]
[418966583,1774683038333,-182.9199372,0.00015688,2]
[418966584,1774683038342,-151.0,0.00015688,2]
[418966585,1774683038352,-228.690655,0.00015758,2]
[418966586,1774683038361,-151.0,0.00016438,2]
[418966587,1774683038370,-608.519147,0.00016619,2]
[418966588,1774683038379,-509.46771092,0.00016634,2]
[418966589,1774683038388,-527.6363092,0.00017,2]
[418966590,1774683038397,-232.60122864,0.00017069,2]
[418966591,1774683038406,-418.68221155,0.00017069,2]
[418966592,1774683038416,-608.519147,0.00017319,2]
[418966593,1774683038425,-151.0,0.00017561,2]
[418966594,1774683038433,-500.0,0.00017694,2]
[418966595,1774683038442,-500.0,0.00017694,2]
[418966596,1774683038451,-183.16577066,0.00017694,2]
[418966597,1774683038460,-500.0,0.00017694,2]
[418966598,1774683038612,-500.0,0.00017694,2]
[418966599,1774683038622,-500.0,0.00017694,2]
[418966600,1774683038632,-500.0,0.00017694,2]
[418966601,1774683038642,-500.0,0.00017694,2]
[418966602,1774683038651,-500.0,0.00017694,2]
[418966603,1774683038660,-500.0,0.00017694,2]
[418966604,1774683038669,-500.0,0.00017694,2]
[418966605,1774683038678,-500.0,0.00017694,2]
[418966606,1774683038687,-500.0,0.00017694,2]
[418966607,1774683038696,-500.0,0.00017694,2]
[418966608,1774683038705,-500.0,0.00017694,2]
[418966609,1774683038714,-500.0,0.00017694,2]
[418966610,1774683038724,-500.0,0.00017694,2]
[418966611,1774683038734,-500.0,0.00017694,2]
[418966612,1774683038743,-500.0,0.00017694,2]
[418966613,1774683038752,-153.39667687,0.00017694,2]
[418966614,1774683038761,-500.0,0.00017694,2]
[418966615,1774683038771,-500.0,0.00017694,2]
[418966616,1774683038781,-500.0,0.00017694,2]
[418966617,1774683038790,-500.0,0.00017694,2]
[418966618,1774683038799,-500.0,0.00017694,2]
[418966619,1774683038809,-500.0,0.00017694,2]
[418966620,1774683038819,-500.0,0.00017694,2]
[418966621,1774683038828,-500.0,0.00017694,2]
[418966622,1774683038838,-500.0,0.00017694,2]
[418966623,1774683038847,-500.0,0.00017694,2]
[418966624,1774683038857,-500.0,0.00017694,2]
[418966625,1774683038866,-500.0,0.00017694,2]
[418966626,1774683038876,-495.02730672,0.00017694,2]
[418966627,1774683038886,-500.0,0.00017694,2]
[418966628,1774683038896,-500.0,0.00017694,2]
[418966629,1774683038905,-500.0,0.00017694,2]
[418966630,1774683038914,-500.0,0.00017694,2]
[418966631,1774683038924,-500.0,0.00017694,2]
[418966632,1774683038933,-619.77688649,0.00017694,2]
[418966633,1774683038942,-500.0,0.00017694,2]
[418966634,1774683038951,-500.0,0.00017694,2]
[418966635,1774683038960,-500.0,0.00017694,2]
[418966636,1774683038970,-500.0,0.00017694,2]
[418966637,1774683038979,-500.0,0.00017694,2]
[418966638,1774683038988,-500.0,0.00017694,2]
[418966639,1774683038998,-500.0,0.00017694,2]
[418966640,1774683039008,-500.0,0.00017694,2]
[418966641,1774683039018,-500.0,0.00017694,2]
[418966642,1774683039028,-500.0,0.00017694,2]
[418966643,1774683039037,-500.0,0.00017694,2]
[418966644,1774683039047,-366.68512113,0.00017694,2]
[418966645,1774683039056,-500.0,0.00017694,2]
[418966646,1774683039066,-500.0,0.00017694,2]
[418966647,1774683039075,-500.0,0.00017694,2]
[418966648,1774683039085,-500.0,0.00017694,2]
[418966649,1774683039095,-500.0,0.00017694,2]
[418966650,1774683039104,-500.0,0.00017694,2]
[418966651,1774683039114,-500.0,0.00017694,2]
[418966652,1774683039124,-500.0,0.00017694,2]
[418966653,1774683039134,-500.0,0.00017694,2]
[418966654,1774683039143,-500.0,0.00017694,2]
[418966655,1774683039153,-500.0,0.00017694,2]
[418966656,1774683039162,-500.0,0.00017694,2]
[418966657,1774683039171,-500.0,0.00017694,2]
[418966658,1774683039180,-500.0,0.00017694,2]
[418966659,1774683039190,-500.0,0.00017694,2]
[418966660,1774683039200,-500.0,0.00017694,2]
[418966661,1774683039209,-500.0,0.00017694,2]
[418966662,1774683039218,-500.0,0.00017694,2]
[418966663,1774683039228,-500.0,0.00017694,2]
[418966664,1774683039237,-500.0,0.00017694,2]
[418966665,1774683039247,-500.0,0.00017695,2]
[418966666,1774683039256,-504.98387014,0.00017695,2]
[418966667,1774683039266,-155.0,0.00017966,2]
[418966668,1774683039275,-151.0,0.00017968,2]
[418966669,1774683039284,-151.0,0.00017968,2]
[418966670,1774683039294,-195.150068,0.00017968,2]
[418966671,1774683039304,-151.0,0.00017969,2]
[418966672,1774683039313,-151.0,0.00017969,2]
[418966673,1774683039322,-208.565582,0.00017969,2]
[418966674,1774683039332,-1031.3521182,0.00017971,2]
[418966675,1774683039341,-608.519147,0.00018018,2]
[418966676,1774683039350,-500.0,0.00018033,2]
[418966677,1774683039361,-285.74355249,0.00018033,2]
[418966678,1774683039373,-500.0,0.00018033,2]
[418966679,1774683039383,-500.0,0.00018033,2]
[418966680,1774683039393,-500.0,0.00018033,2]
[418966681,1774683039403,-646.75651153,0.00018033,2]
[418966682,1774683039414,-500.0,0.00018033,2]
[418966683,1774683039424,-621.96358587,0.00018034,2]
[418966684,1774683039434,-1119.53445457,0.00018034,2]
[418966685,1774683039444,-1990.2834748,0.00018034,2]
[418966686,1774683039454,-3109.81792937,0.00018034,2]
[418966687,1774683039463,-4478.13781829,0.00018034,2]
[418966688,1774683039472,-434.47308753,0.00018034,2]
[418966689,1774683039481,-782.05155755,0.00018034,2]
[418966690,1774683039491,-1390.31388008,0.00018034,2]
[418966691,1774683039500,-17574.5674935,0.00018042,2]
[418966692,1774683039509,-1000.0,0.00018083,2]
[418966693,1774683039518,-874.52900898,0.00018083,2]
[418966825,1774683043414,-500.0,0.00017694,2]
[418966826,1774683043427,-500.0,0.00017694,2]
[418966827,1774683043440,-500.0,0.00017694,2]
[418966828,1774683043453,-500.0,0.00017694,2]
[418966829,1774683043466,-500.0,0.00017694,2]
[418966830,1774683043478,-550.0,0.00017694,2]
[418966831,1774683043490,-500.0,0.00017694,2]
[418966832,1774683043501,-500.0,0.00017694,2]
[418966833,1774683043512,-500.0,0.00017694,2]
[418966834,1774683043525,-500.0,0.00017694,2]
[418966835,1774683043538,-125.47099102,0.00018083,2]
[418966836,1774683043550,-845.186,0.00018083,2]
[418966837,1774683043562,-478.0,0.00018083,5]
[418966838,1774683043573,-549.0,0.00018083,5]
[418966839,1774683043585,-316.61445564,0.00018408,2]
[418966840,1774683043597,-2037.8708437,0.00018508,2]
[418966841,1774683043610,-6095.24314157,0.00018525,2]
[418966842,1774683043622,-500.0,0.0001865,2]
[418966843,1774683043633,-608.519147,0.00018718,2]
[418966844,1774683043645,-182.9199372,0.00019176,2]
[418966845,1774683043656,-221.14185359,0.00019198,2]
[418966858,1774683046377,-434.16007065,0.00019198,2]
[418966859,1774683046390,-458.0,0.00019198,5]
[418966860,1774683046401,-438.0,0.00019198,5]